Workbook

Sheet List
A1: List | B1: Row Labels | D1: Colour | E1: Arrows
A2: Toys | B2: Toys | D2: Green | E2: 0.01
A3: Clothing | D3: Yellow | E3: 0
A4: Outdoors
A5: All

Sheet Data
A1: Year | B1: QTR | C1: Dept | D1: List | E1: Labour | F1: Overheads | G1: Revenue
A2: CY | B2: Q1 | C2: Toys | D2: Admin | E2: 293 | F2: 111 | G2: 837
A3: CY | B3: Q1 | C3: Toys | D3: Corporate | E3: 227 | F3: 155 | G3: 824
A4: CY | B4: Q1 | C4: Toys | D4: Finance | E4: 236 | F4: 100 | G4: 764
A5: CY | B5: Q1 | C5: Toys | D5: HR | E5: 246 | F5: 186 | G5: 705
A6: CY | B6: Q1 | C6: Toys | D6: IT | E6: 123 | F6: 178 | G6: 894
A7: CY | B7: Q1 | C7: Toys | D7: Legal | E7: 172 | F7: 155 | G7: 885
A8: CY | B8: Q1 | C8: Toys | D8: Marketing | E8: 196 | F8: 154 | G8: 753
A9: CY | B9: Q1 | C9: Toys | D9: R&D | E9: 292 | F9: 171 | G9: 735
A10: CY | B10: Q1 | C10: Clothing | D10: Admin | E10: 106 | F10: 128 | G10: 422
A11: CY | B11: Q1 | C11: Clothing | D11: Corporate | E11: 161 | F11: 124 | G11: 498
A12: CY | B12: Q1 | C12: Clothing | D12: Finance | E12: 197 | F12: 166 | G12: 348
A13: CY | B13: Q1 | C13: Clothing | D13: HR | E13: 200 | F13: 109 | G13: 504
A14: CY | B14: Q1 | C14: Clothing | D14: IT | E14: 103 | F14: 142 | G14: 542
A15: CY | B15: Q1 | C15: Clothing | D15: Legal | E15: 193 | F15: 143 | G15: 466
A16: CY | B16: Q1 | C16: Clothing | D16: Marketing | E16: 151 | F16: 149 | G16: 493
A17: CY | B17: Q1 | C17: Clothing | D17: R&D | E17: 189 | F17: 144 | G17: 327
A18: CY | B18: Q1 | C18: Outdoors | D18: Admin | E18: 185 | F18: 179 | G18: 488
A19: CY | B19: Q1 | C19: Outdoors | D19: Corporate | E19: 179 | F19: 169 | G19: 347
A20: CY | B20: Q1 | C20: Outdoors | D20: Finance | E20: 196 | F20: 179 | G20: 541
A21: CY | B21: Q1 | C21: Outdoors | D21: HR | E21: 100 | F21: 135 | G21: 362
A22: CY | B22: Q1 | C22: Outdoors | D22: IT | E22: 189 | F22: 183 | G22: 502
A23: CY | B23: Q1 | C23: Outdoors | D23: Legal | E23: 143 | F23: 190 | G23: 451
A24: CY | B24: Q1 | C24: Outdoors | D24: Marketing | E24: 143 | F24: 169 | G24: 412
A25: CY | B25: Q1 | C25: Outdoors | D25: R&D | E25: 193 | F25: 102 | G25: 439
A26: CY | B26: Q2 | C26: Toys | D26: Admin | E26: 351.6 | F26: 92.13 | G26: 887.22
A27: CY | B27: Q2 | C27: Toys | D27: Corporate | E27: 267.86 | F27: 145.7 | G27: 683.92
A28: CY | B28: Q2 | C28: Toys | D28: Finance | E28: 238.36 | F28: 107 | G28: 641.76
A29: CY | B29: Q2 | C29: Toys | D29: HR | E29: 214.02 | F29: 182.28 | G29: 838.95
A30: CY | B30: Q2 | C30: Toys | D30: IT | E30: 141.45 | F30: 154.86 | G30: 911.88
A31: CY | B31: Q2 | C31: Toys | D31: Legal | E31: 165.12 | F31: 133.3 | G31: 761.1
A32: CY | B32: Q2 | C32: Toys | D32: Marketing | E32: 170.52 | F32: 143.22 | G32: 602.4
A33: CY | B33: Q2 | C33: Toys | D33: R&D | E33: 327.04 | F33: 138.51 | G33: 882
A34: CY | B34: Q2 | C34: Clothing | D34: Admin | E34: 119.78 | F34: 152.32 | G34: 354.48
A35: CY | B35: Q2 | C35: Clothing | D35: Corporate | E35: 152.95 | F35: 119.04 | G35: 473.1
A36: CY | B36: Q2 | C36: Clothing | D36: Finance | E36: 200.94 | F36: 192.56 | G36: 306.24
A37: CY | B37: Q2 | C37: Clothing | D37: HR | E37: 190 | F37: 95.92 | G37: 594.72
A38: CY | B38: Q2 | C38: Clothing | D38: IT | E38: 87.55 | F38: 123.54 | G38: 504.06
A39: CY | B39: Q2 | C39: Clothing | D39: Legal | E39: 218.09 | F39: 163.02 | G39: 428.72
A40: CY | B40: Q2 | C40: Clothing | D40: Marketing | E40: 144.96 | F40: 140.06 | G40: 497.93
A41: CY | B41: Q2 | C41: Clothing | D41: R&D | E41: 173.88 | F41: 116.64 | G41: 356.43
A42: CY | B42: Q2 | C42: Outdoors | D42: Admin | E42: 179.45 | F42: 161.1 | G42: 453.84
A43: CY | B43: Q2 | C43: Outdoors | D43: Corporate | E43: 207.64 | F43: 189.28 | G43: 385.17
A44: CY | B44: Q2 | C44: Outdoors | D44: Finance | E44: 196 | F44: 214.8 | G44: 465.26
A45: CY | B45: Q2 | C45: Outdoors | D45: HR | E45: 82 | F45: 110.7 | G45: 325.8
A46: CY | B46: Q2 | C46: Outdoors | D46: IT | E46: 215.46 | F46: 162.87 | G46: 602.4
A47: CY | B47: Q2 | C47: Outdoors | D47: Legal | E47: 157.3 | F47: 169.1 | G47: 410.41
A48: CY | B48: Q2 | C48: Outdoors | D48: Marketing | E48: 131.56 | F48: 165.62 | G48: 379.04
A49: CY | B49: Q2 | C49: Outdoors | D49: R&D | E49: 179.49 | F49: 97.92 | G49: 377.54
A50: CY | B50: Q3 | C50: Toys | D50: Admin | E50: 336.95 | F50: 118.77 | G50: 753.3
A51: CY | B51: Q3 | C51: Toys | D51: Corporate | E51: 249.7 | F51: 168.95 | G51: 964.08
A52: CY | B52: Q3 | C52: Toys | D52: Finance | E52: 212.4 | F52: 97 | G52: 893.88
A53: CY | B53: Q3 | C53: Toys | D53: HR | E53: 204.18 | F53: 212.04 | G53: 662.7
A54: CY | B54: Q3 | C54: Toys | D54: IT | E54: 135.3 | F54: 163.76 | G54: 1063.86
A55: CY | B55: Q3 | C55: Toys | D55: Legal | E55: 170.28 | F55: 130.2 | G55: 938.1
A56: CY | B56: Q3 | C56: Toys | D56: Marketing | E56: 184.24 | F56: 183.26 | G56: 745.47
A57: CY | B57: Q3 | C57: Toys | D57: R&D | E57: 309.52 | F57: 193.23 | G57: 610.05
A58: CY | B58: Q3 | C58: Clothing | D58: Admin | E58: 107.06 | F58: 142.08 | G58: 358.7
A59: CY | B59: Q3 | C59: Clothing | D59: Corporate | E59: 143.29 | F59: 110.36 | G59: 398.4
A60: CY | B60: Q3 | C60: Clothing | D60: Finance | E60: 228.52 | F60: 154.38 | G60: 285.36
A61: CY | B61: Q3 | C61: Clothing | D61: HR | E61: 182 | F61: 88.29 | G61: 443.52
A62: CY | B62: Q3 | C62: Clothing | D62: IT | E62: 84.46 | F62: 124.96 | G62: 634.14
A63: CY | B63: Q3 | C63: Clothing | D63: Legal | E63: 175.63 | F63: 121.55 | G63: 559.2
A64: CY | B64: Q3 | C64: Clothing | D64: Marketing | E64: 179.69 | F64: 123.67 | G64: 483.14
A65: CY | B65: Q3 | C65: Clothing | D65: R&D | E65: 171.99 | F65: 151.2 | G65: 336.81
A66: CY | B66: Q3 | C66: Outdoors | D66: Admin | E66: 194.25 | F66: 193.32 | G66: 556.32
A67: CY | B67: Q3 | C67: Outdoors | D67: Corporate | E67: 193.32 | F67: 180.83 | G67: 329.65
A68: CY | B68: Q3 | C68: Outdoors | D68: Finance | E68: 231.28 | F68: 187.95 | G68: 541
A69: CY | B69: Q3 | C69: Outdoors | D69: HR | E69: 88 | F69: 109.35 | G69: 434.4
A70: CY | B70: Q3 | C70: Outdoors | D70: IT | E70: 187.11 | F70: 197.64 | G70: 406.62
A71: CY | B71: Q3 | C71: Outdoors | D71: Legal | E71: 117.26 | F71: 207.1 | G71: 392.37
A72: CY | B72: Q3 | C72: Outdoors | D72: Marketing | E72: 161.59 | F72: 197.73 | G72: 329.6
A73: CY | B73: Q3 | C73: Outdoors | D73: R&D | E73: 165.98 | F73: 95.88 | G73: 412.66
A74: CY | B74: Q4 | C74: Toys | D74: Admin | E74: 407.856 | F74: 91.2087 | G74: 825.1146
A75: CY | B75: Q4 | C75: Toys | D75: Corporate | E75: 297.3246 | F75: 150.071 | G75: 642.8848
A76: CY | B76: Q4 | C76: Toys | D76: Finance | E76: 255.0452 | F76: 126.26 | G76: 596.8368
A77: CY | B77: Q4 | C77: Toys | D77: HR | E77: 184.0572 | F77: 145.824 | G77: 914.4555
A78: CY | B78: Q4 | C78: Toys | D78: IT | E78: 113.16 | F78: 173.4432 | G78: 939.2364
A79: CY | B79: Q4 | C79: Toys | D79: Legal | E79: 156.864 | F79: 143.964 | G79: 852.432
A80: CY | B80: Q4 | C80: Toys | D80: Marketing | E80: 184.1616 | F80: 147.5166 | G80: 506.016
A81: CY | B81: Q4 | C81: Toys | D81: R&D | E81: 317.2288 | F81: 128.8143 | G81: 855.54
A82: CY | B82: Q4 | C82: Clothing | D82: Admin | E82: 136.5492 | F82: 159.936 | G82: 308.3976
A83: CY | B83: Q4 | C83: Clothing | D83: Corporate | E83: 182.0105 | F83: 133.3248 | G83: 406.866
A84: CY | B84: Q4 | C84: Clothing | D84: Finance | E84: 217.0152 | F84: 211.816 | G84: 361.3632
A85: CY | B85: Q4 | C85: Clothing | D85: HR | E85: 199.5 | F85: 85.3688 | G85: 660.1392
A86: CY | B86: Q4 | C86: Clothing | D86: IT | E86: 98.056 | F86: 133.4232 | G86: 599.8314
A87: CY | B87: Q4 | C87: Clothing | D87: Legal | E87: 235.5372 | F87: 151.6086 | G87: 445.8688
A88: CY | B88: Q4 | C88: Clothing | D88: Marketing | E88: 134.8128 | F88: 138.6594 | G88: 423.2405
A89: CY | B89: Q4 | C89: Clothing | D89: R&D | E89: 144.3204 | F89: 125.9712 | G89: 285.144
A90: CY | B90: Q4 | C90: Outdoors | D90: Admin | E90: 157.916 | F90: 183.654 | G90: 499.224
A91: CY | B91: Q4 | C91: Outdoors | D91: Corporate | E91: 191.0288 | F91: 227.136 | G91: 350.5047
A92: CY | B92: Q4 | C92: Outdoors | D92: Finance | E92: 217.56 | F92: 236.28 | G92: 409.4288
A93: CY | B93: Q4 | C93: Outdoors | D93: HR | E93: 69.7 | F93: 111.807 | G93: 364.896
A94: CY | B94: Q4 | C94: Outdoors | D94: IT | E94: 174.5226 | F94: 140.0682 | G94: 710.832
A95: CY | B95: Q4 | C95: Outdoors | D95: Legal | E95: 187.187 | F95: 191.083 | G95: 455.5551
A96: CY | B96: Q4 | C96: Outdoors | D96: Marketing | E96: 106.5636 | F96: 152.3704 | G96: 329.7648
A97: CY | B97: Q4 | C97: Outdoors | D97: R&D | E97: 165.1308 | F97: 109.6704 | G97: 362.4384
A98: PY | B98: Q1 | C98: Toys | D98: Admin | E98: 281.28 | F98: 130.98 | G98: 912.33
A99: PY | B99: Q1 | C99: Toys | D99: Corporate | E99: 181.6 | F99: 142.6 | G99: 650.96
A100: PY | B100: Q1 | C100: Toys | D100: Finance | E100: 228.92 | F100: 96 | G100: 733.44
A101: PY | B101: Q1 | C101: Toys | D101: HR | E101: 275.52 | F101: 187.86 | G101: 564
A102: PY | B102: Q1 | C102: Toys | D102: IT | E102: 129.15 | F102: 201.14 | G102: 902.94
A103: PY | B103: Q1 | C103: Toys | D103: Legal | E103: 178.88 | F103: 141.05 | G103: 787.65
A104: PY | B104: Q1 | C104: Toys | D104: Marketing | E104: 219.52 | F104: 158.62 | G104: 685.23
A105: PY | B105: Q1 | C105: Toys | D105: R&D | E105: 283.24 | F105: 136.8 | G105: 823.2
A106: PY | B106: Q1 | C106: Clothing | D106: Admin | E106: 92.22 | F106: 108.8 | G106: 434.66
A107: PY | B107: Q1 | C107: Clothing | D107: Corporate | E107: 157.78 | F107: 135.16 | G107: 433.26
A108: PY | B108: Q1 | C108: Clothing | D108: Finance | E108: 161.54 | F108: 161.02 | G108: 327.12
A109: PY | B109: Q1 | C109: Clothing | D109: HR | E109: 206 | F109: 94.83 | G109: 443.52
A110: PY | B110: Q1 | C110: Clothing | D110: IT | E110: 83.43 | F110: 156.2 | G110: 476.96
A111: PY | B111: Q1 | C111: Clothing | D111: Legal | E111: 183.35 | F111: 121.55 | G111: 470.66
A112: PY | B112: Q1 | C112: Clothing | D112: Marketing | E112: 167.61 | F112: 138.57 | G112: 493
A113: PY | B113: Q1 | C113: Clothing | D113: R&D | E113: 221.13 | F113: 115.2 | G113: 372.78
A114: PY | B114: Q1 | C114: Outdoors | D114: Admin | E114: 175.75 | F114: 180.79 | G114: 448.96
A115: PY | B115: Q1 | C115: Outdoors | D115: Corporate | E115: 144.99 | F115: 141.96 | G115: 340.06
A116: PY | B116: Q1 | C116: Outdoors | D116: Finance | E116: 205.8 | F116: 202.27 | G116: 470.67
A117: PY | B117: Q1 | C117: Outdoors | D117: HR | E117: 110 | F117: 108 | G117: 336.66
A118: PY | B118: Q1 | C118: Outdoors | D118: IT | E118: 158.76 | F118: 192.15 | G118: 582.32
A119: PY | B119: Q1 | C119: Outdoors | D119: Legal | E119: 150.15 | F119: 148.2 | G119: 496.1
A120: PY | B120: Q1 | C120: Outdoors | D120: Marketing | E120: 157.3 | F120: 158.86 | G120: 473.8
A121: PY | B121: Q1 | C121: Outdoors | D121: R&D | E121: 158.26 | F121: 81.6 | G121: 469.73
A122: PY | B122: Q2 | C122: Toys | D122: Admin | E122: 344.568 | F122: 89.3661 | G122: 816.2424
A123: PY | B123: Q2 | C123: Toys | D123: Corporate | E123: 235.7168 | F123: 120.931 | G123: 622.3672
A124: PY | B124: Q2 | C124: Toys | D124: Finance | E124: 245.5108 | F124: 121.98 | G124: 603.2544
A125: PY | B125: Q2 | C125: Toys | D125: HR | E125: 207.5994 | F125: 169.5204 | G125: 704.718
A126: PY | B126: Q2 | C126: Toys | D126: IT | E126: 144.279 | F126: 176.5404 | G126: 884.5236
A127: PY | B127: Q2 | C127: Toys | D127: Legal | E127: 171.7248 | F127: 130.634 | G127: 707.823
A128: PY | B128: Q2 | C128: Toys | D128: Marketing | E128: 138.1212 | F128: 140.3556 | G128: 704.808
A129: PY | B129: Q2 | C129: Toys | D129: R&D | E129: 353.2032 | F129: 160.6716 | G129: 740.88
A130: PY | B130: Q2 | C130: Clothing | D130: Admin | E130: 119.78 | F130: 173.6448 | G130: 322.5768
A131: PY | B131: Q2 | C131: Clothing | D131: Corporate | E131: 136.1255 | F131: 98.8032 | G131: 406.866
A132: PY | B132: Q2 | C132: Clothing | D132: Finance | E132: 221.034 | F132: 181.0064 | G132: 260.304
A133: PY | B133: Q2 | C133: Clothing | D133: HR | E133: 207.1 | F133: 78.6544 | G133: 553.0896
A134: PY | B134: Q2 | C134: Clothing | D134: IT | E134: 97.1805 | F134: 106.2444 | G134: 408.2886
A135: PY | B135: Q2 | C135: Clothing | D135: Legal | E135: 209.3664 | F135: 167.9106 | G135: 480.1664
A136: PY | B136: Q2 | C136: Clothing | D136: Marketing | E136: 144.96 | F136: 161.069 | G136: 388.3854
A137: PY | B137: Q2 | C137: Clothing | D137: R&D | E137: 187.7904 | F137: 127.1376 | G137: 285.144
A138: PY | B138: Q2 | C138: Outdoors | D138: Admin | E138: 181.2445 | F138: 156.267 | G138: 526.4544
A139: PY | B139: Q2 | C139: Outdoors | D139: Corporate | E139: 178.5704 | F139: 168.4592 | G139: 427.5387
A140: PY | B140: Q2 | C140: Outdoors | D140: Finance | E140: 217.56 | F140: 234.132 | G140: 535.049
A141: PY | B141: Q2 | C141: Outdoors | D141: HR | E141: 65.6 | F141: 126.198 | G141: 342.09
A142: PY | B142: Q2 | C142: Outdoors | D142: IT | E142: 232.6968 | F142: 127.0386 | G142: 710.832
A143: PY | B143: Q2 | C143: Outdoors | D143: Legal | E143: 133.705 | F143: 152.19 | G143: 430.9305
A144: PY | B144: Q2 | C144: Outdoors | D144: Marketing | E144: 131.56 | F144: 168.9324 | G144: 341.136
A145: PY | B145: Q2 | C145: Outdoors | D145: R&D | E145: 211.7982 | F145: 76.3776 | G145: 415.294
A146: PY | B146: Q3 | C146: Toys | D146: Admin | E146: 283.038 | F146: 124.7085 | G146: 828.63
A147: PY | B147: Q3 | C147: Toys | D147: Corporate | E147: 252.197 | F147: 162.192 | G147: 954.4392
A148: PY | B148: Q3 | C148: Toys | D148: Finance | E148: 233.64 | F148: 105.73 | G148: 831.3084
A149: PY | B149: Q3 | C149: Toys | D149: HR | E149: 204.18 | F149: 248.0868 | G149: 748.851
A150: PY | B150: Q3 | C150: Toys | D150: IT | E150: 150.183 | F150: 144.1088 | G150: 840.4494
A151: PY | B151: Q3 | C151: Toys | D151: Legal | E151: 189.0108 | F151: 117.18 | G151: 750.48
A152: PY | B152: Q3 | C152: Toys | D152: Marketing | E152: 204.5064 | F152: 205.2512 | G152: 618.7401
A153: PY | B153: Q3 | C153: Toys | D153: R&D | E153: 250.7112 | F153: 218.3499 | G153: 512.442
A154: PY | B154: Q3 | C154: Clothing | D154: Admin | E154: 114.5542 | F154: 144.9216 | G154: 337.178
A155: PY | B155: Q3 | C155: Clothing | D155: Corporate | E155: 111.7662 | F155: 118.0852 | G155: 386.448
A156: PY | B156: Q3 | C156: Clothing | D156: Finance | E156: 269.6536 | F156: 179.0808 | G156: 231.1416
A157: PY | B157: Q3 | C157: Clothing | D157: HR | E157: 212.94 | F157: 78.5781 | G157: 368.1216
A158: PY | B158: Q3 | C158: Clothing | D158: IT | E158: 90.3722 | F158: 141.2048 | G158: 602.433
A159: PY | B159: Q3 | C159: Clothing | D159: Legal | E159: 149.2855 | F159: 115.4725 | G159: 520.056
A160: PY | B160: Q3 | C160: Clothing | D160: Marketing | E160: 159.9241 | F160: 108.8296 | G160: 502.4656
A161: PY | B161: Q3 | C161: Clothing | D161: R&D | E161: 171.99 | F161: 130.032 | G161: 397.4358
A162: PY | B162: Q3 | C162: Outdoors | D162: Admin | E162: 203.9625 | F162: 189.4536 | G162: 445.056
A163: PY | B163: Q3 | C163: Outdoors | D163: Corporate | E163: 214.5852 | F163: 159.1304 | G163: 342.836
A164: PY | B164: Q3 | C164: Outdoors | D164: Finance | E164: 191.9624 | F164: 199.227 | G164: 503.13
A165: PY | B165: Q3 | C165: Outdoors | D165: HR | E165: 91.52 | F165: 117.0045 | G165: 495.216
A166: PY | B166: Q3 | C166: Outdoors | D166: IT | E166: 205.821 | F166: 169.9704 | G166: 378.1566
A167: PY | B167: Q3 | C167: Outdoors | D167: Legal | E167: 104.3614 | F167: 163.609 | G167: 404.1411
A168: PY | B168: Q3 | C168: Outdoors | D168: Marketing | E168: 143.8151 | F168: 223.4349 | G168: 270.272
A169: PY | B169: Q3 | C169: Outdoors | D169: R&D | E169: 159.3408 | F169: 100.674 | G169: 412.66
A170: PY | B170: Q4 | C170: Toys | D170: Admin | E170: 481.27008 | F170: 72.96696 | G170: 693.096264
A171: PY | B171: Q4 | C171: Toys | D171: Corporate | E171: 288.404862 | F171: 166.57881 | G171: 527.165536
A172: PY | B172: Q4 | C172: Toys | D172: Finance | E172: 262.696556 | F172: 138.886 | G172: 704.267424
A173: PY | B173: Q4 | C173: Toys | D173: HR | E173: 180.376056 | F173: 151.65696 | G173: 978.467385
A174: PY | B174: Q4 | C174: Toys | D174: IT | E174: 129.0024 | F174: 197.725248 | G174: 948.628764
A175: PY | B175: Q4 | C175: Toys | D175: Legal | E175: 131.76576 | F175: 145.40364 | G175: 1005.86976
A176: PY | B176: Q4 | C176: Toys | D176: Marketing | E176: 182.319984 | F176: 131.289774 | G176: 556.6176
A177: PY | B177: Q4 | C177: Toys | D177: R&D | E177: 247.438464 | F177: 110.780298 | G177: 872.6508
A178: PY | B178: Q4 | C178: Clothing | D178: Admin | E178: 151.569612 | F178: 126.34944 | G178: 265.221936
A179: PY | B179: Q4 | C179: Clothing | D179: Corporate | E179: 180.190395 | F179: 141.324288 | G179: 370.24806
A180: PY | B180: Q4 | C180: Clothing | D180: Finance | E180: 180.122616 | F180: 188.51624 | G180: 404.726784
A181: PY | B181: Q4 | C181: Clothing | D181: HR | E181: 191.52 | F181: 69.148728 | G181: 653.537808
A182: PY | B182: Q4 | C182: Clothing | D182: IT | E182: 86.28928 | F182: 137.425896 | G182: 497.860062
A183: PY | B183: Q4 | C183: Clothing | D183: Legal | E183: 277.933896 | F183: 118.254708 | G183: 401.28192
A184: PY | B184: Q4 | C184: Clothing | D184: Marketing | E184: 141.55344 | F184: 109.540926 | G184: 338.5924
A185: PY | B185: Q4 | C185: Clothing | D185: R&D | E185: 147.206808 | F185: 115.893504 | G185: 316.50984
A186: PY | B186: Q4 | C186: Outdoors | D186: Admin | E186: 183.18256 | F186: 202.0194 | G186: 459.28608
A187: PY | B187: Q4 | C187: Outdoors | D187: Corporate | E187: 200.58024 | F187: 268.02048 | G187: 399.575358
A188: PY | B188: Q4 | C188: Outdoors | D188: Finance | E188: 252.3696 | F188: 245.7312 | G188: 356.203056
A189: PY | B189: Q4 | C189: Outdoors | D189: HR | E189: 80.155 | F189: 108.45279 | G189: 426.92832
A190: PY | B190: Q4 | C190: Outdoors | D190: IT | E190: 146.598984 | F190: 163.879794 | G190: 746.3736
A191: PY | B191: Q4 | C191: Outdoors | D191: Legal | E191: 192.80261 | F191: 212.10213 | G191: 405.444039
A192: PY | B192: Q4 | C192: Outdoors | D192: Marketing | E192: 104.432328 | F192: 178.273368 | G192: 352.848336
A193: PY | B193: Q4 | C193: Outdoors | D193: R&D | E193: 165.1308 | F193: 115.15392 | G193: 308.07264

Sheet Piv
A1: Year | B1: CY
A2: Dept | B2: (All)
A4: Row Labels | B4: Labour A | C4: Overheads B
A5: R&D | B5: 2628.58 | C5: 1574.8359
A6: Finance | B6: 2626.1204 | C6: 1973.046
A7: Admin | B7: 2575.4112 | C7: 1712.5187
A8: Corporate | B8: 2452.1239 | C8: 1872.6918
A9: Legal | B9: 2091.2682 | C9: 1898.9256

Sheet Calcs
B4: CY | C4: Labour
B5: Line | C5: Department | D5: Q1 | E5: Q2 | F5: Q3 | G5: Q4 | H5: Total | I5: PY
B6: Labour | C6: Toys | D6: =SUMIFS(Data!$E$2:$E$194,Data!$A$2:$A$194,$B$4,Data!$B$2:$B$194,D$5,Data!$C$2:$C$194,$C6) -> 1785 | E6: =SUMIFS(Data!$E$2:$E$194,Data!$A$2:$A$194,$B$4,Data!$B$2:$B$194,E$5,Data!$C$2:$C$194,$C6) -> 1875.97 | F6: =SUMIFS(Data!$E$2:$E$194,Data!$A$2:$A$194,$B$4,Data!$B$2:$B$194,F$5,Data!$C$2:$C$194,$C6) -> 1802.57 | G6: =SUMIFS(Data!$E$2:$E$194,Data!$A$2:$A$194,$B$4,Data!$B$2:$B$194,G$5,Data!$C$2:$C$194,$C6) -> 1915.6974 | H6: =SUM(D6:G6) -> 7379.2374 | I6: =SUMIFS(Data!$E$2:$E$194,Data!$A$2:$A$194,$I$5,Data!$C$2:$C$194,$C6) -> 7289.573762
B7: Labour | C7: Clothing | D7: =SUMIFS(Data!$E$2:$E$194,Data!$A$2:$A$194,$B$4,Data!$B$2:$B$194,D$5,Data!$C$2:$C$194,$C7) -> 1300 | E7: =SUMIFS(Data!$E$2:$E$194,Data!$A$2:$A$194,$B$4,Data!$B$2:$B$194,E$5,Data!$C$2:$C$194,$C7) -> 1288.15 | F7: =SUMIFS(Data!$E$2:$E$194,Data!$A$2:$A$194,$B$4,Data!$B$2:$B$194,F$5,Data!$C$2:$C$194,$C7) -> 1272.64 | G7: =SUMIFS(Data!$E$2:$E$194,Data!$A$2:$A$194,$B$4,Data!$B$2:$B$194,G$5,Data!$C$2:$C$194,$C7) -> 1347.8013 | H7: =SUM(D7:G7) -> 5208.5913 | I7: =SUMIFS(Data!$E$2:$E$194,Data!$A$2:$A$194,$I$5,Data!$C$2:$C$194,$C7) -> 5233.268647
B8: Labour | C8: Outdoors | D8: =SUMIFS(Data!$E$2:$E$194,Data!$A$2:$A$194,$B$4,Data!$B$2:$B$194,D$5,Data!$C$2:$C$194,$C8) -> 1328 | E8: =SUMIFS(Data!$E$2:$E$194,Data!$A$2:$A$194,$B$4,Data!$B$2:$B$194,E$5,Data!$C$2:$C$194,$C8) -> 1348.9 | F8: =SUMIFS(Data!$E$2:$E$194,Data!$A$2:$A$194,$B$4,Data!$B$2:$B$194,F$5,Data!$C$2:$C$194,$C8) -> 1338.79 | G8: =SUMIFS(Data!$E$2:$E$194,Data!$A$2:$A$194,$B$4,Data!$B$2:$B$194,G$5,Data!$C$2:$C$194,$C8) -> 1269.6088 | H8: 5285.2988 | I8: =SUMIFS(Data!$E$2:$E$194,Data!$A$2:$A$194,$I$5,Data!$C$2:$C$194,$C8) -> 5254.365422
B9: Labour | C9: * | D9: =SUMIFS(Data!$E$2:$E$194,Data!$A$2:$A$194,$B$4,Data!$B$2:$B$194,D$5,Data!$C$2:$C$194,$C9) -> 4413 | E9: =SUMIFS(Data!$E$2:$E$194,Data!$A$2:$A$194,$B$4,Data!$B$2:$B$194,E$5,Data!$C$2:$C$194,$C9) -> 4513.02 | F9: =SUMIFS(Data!$E$2:$E$194,Data!$A$2:$A$194,$B$4,Data!$B$2:$B$194,F$5,Data!$C$2:$C$194,$C9) -> 4414 | G9: =SUMIFS(Data!$E$2:$E$194,Data!$A$2:$A$194,$B$4,Data!$B$2:$B$194,G$5,Data!$C$2:$C$194,$C9) -> 4533.1075 | H9: 17873.1275 | I9: =SUMIFS(Data!$E$2:$E$194,Data!$A$2:$A$194,$I$5,Data!$C$2:$C$194,$C9) -> 17777.20783
C11: Overheads
B12: Line | C12: Category | D12: Q1 | E12: Q2 | F12: Q3 | G12: Q4 | H12: Total | I12: PY
B13: Overheads | C13: Toys | D13: =SUMIFS(Data!$F$2:$F$98,Data!$B$2:$B$98,D$5,Data!$C$2:$C$98,$C13) -> 1340.98 | E13: =SUMIFS(Data!$F$2:$F$98,Data!$B$2:$B$98,E$5,Data!$C$2:$C$98,$C13) -> 1097 | F13: =SUMIFS(Data!$F$2:$F$98,Data!$B$2:$B$98,F$5,Data!$C$2:$C$98,$C13) -> 1267.21 | G13: =SUMIFS(Data!$F$2:$F$98,Data!$B$2:$B$98,G$5,Data!$C$2:$C$98,$C13) -> 1107.1018 | H13: =SUM(D13:G13) -> 4812.2918 | I13: =SUMIFS(Data!$F$2:$F$194,Data!$A$2:$A$194,$I$5,Data!$C$2:$C$194,$C13) -> 4745.94399
B14: Overheads | C14: Clothing | D14: =SUMIFS(Data!$F$2:$F$98,Data!$B$2:$B$98,D$5,Data!$C$2:$C$98,$C14) -> 1105 | E14: =SUMIFS(Data!$F$2:$F$98,Data!$B$2:$B$98,E$5,Data!$C$2:$C$98,$C14) -> 1103.1 | F14: =SUMIFS(Data!$F$2:$F$98,Data!$B$2:$B$98,F$5,Data!$C$2:$C$98,$C14) -> 1016.49 | G14: =SUMIFS(Data!$F$2:$F$98,Data!$B$2:$B$98,G$5,Data!$C$2:$C$98,$C14) -> 1140.108 | H14: =SUM(D14:G14) -> 4364.698 | I14: =SUMIFS(Data!$F$2:$F$194,Data!$A$2:$A$194,$I$5,Data!$C$2:$C$194,$C14) -> 4148.45873
B15: Overheads | C15: Outdoors | D15: =SUMIFS(Data!$F$2:$F$98,Data!$B$2:$B$98,D$5,Data!$C$2:$C$98,$C15) -> 1306 | E15: =SUMIFS(Data!$F$2:$F$98,Data!$B$2:$B$98,E$5,Data!$C$2:$C$98,$C15) -> 1271.39 | F15: =SUMIFS(Data!$F$2:$F$98,Data!$B$2:$B$98,F$5,Data!$C$2:$C$98,$C15) -> 1369.8 | G15: =SUMIFS(Data!$F$2:$F$98,Data!$B$2:$B$98,G$5,Data!$C$2:$C$98,$C15) -> 1352.069 | H15: 5299.259 | I15: =SUMIFS(Data!$F$2:$F$194,Data!$A$2:$A$194,$I$5,Data!$C$2:$C$194,$C15) -> 5239.561682
B16: Overheads | C16: * | D16: =SUMIFS(Data!$F$2:$F$98,Data!$B$2:$B$98,D$5,Data!$C$2:$C$98,$C16) -> 3751.98 | E16: =SUMIFS(Data!$F$2:$F$98,Data!$B$2:$B$98,E$5,Data!$C$2:$C$98,$C16) -> 3471.49 | F16: =SUMIFS(Data!$F$2:$F$98,Data!$B$2:$B$98,F$5,Data!$C$2:$C$98,$C16) -> 3653.5 | G16: =SUMIFS(Data!$F$2:$F$98,Data!$B$2:$B$98,G$5,Data!$C$2:$C$98,$C16) -> 3599.2788 | H16: 14476.2488 | I16: =SUMIFS(Data!$F$2:$F$194,Data!$A$2:$A$194,$I$5,Data!$C$2:$C$194,$C16) -> 14133.9644
C18: Revenue
B19: Line | C19: Category | D19: Q1 | E19: Q2 | F19: Q3 | G19: Q4 | H19: Total | I19: PY
B20: Revenue | C20: Toys | D20: =SUMIFS(Data!$G$2:$G$98,Data!$B$2:$B$98,D$5,Data!$C$2:$C$98,$C20) -> 7309.33 | E20: =SUMIFS(Data!$G$2:$G$98,Data!$B$2:$B$98,E$5,Data!$C$2:$C$98,$C20) -> 6209.23 | F20: =SUMIFS(Data!$G$2:$G$98,Data!$B$2:$B$98,F$5,Data!$C$2:$C$98,$C20) -> 6631.44 | G20: =SUMIFS(Data!$G$2:$G$98,Data!$B$2:$B$98,G$5,Data!$C$2:$C$98,$C20) -> 6132.5161 | H20: =SUM(D20:G20) -> 26282.5161 | I20: =SUMIFS(Data!$G$2:$G$194,Data!$A$2:$A$194,$I$5,Data!$C$2:$C$194,$C20) -> 24216.47023
B21: Revenue | C21: Clothing | D21: =SUMIFS(Data!$G$2:$G$98,Data!$B$2:$B$98,D$5,Data!$C$2:$C$98,$C21) -> 3600 | E21: =SUMIFS(Data!$G$2:$G$98,Data!$B$2:$B$98,E$5,Data!$C$2:$C$98,$C21) -> 3515.68 | F21: =SUMIFS(Data!$G$2:$G$98,Data!$B$2:$B$98,F$5,Data!$C$2:$C$98,$C21) -> 3499.27 | G21: =SUMIFS(Data!$G$2:$G$98,Data!$B$2:$B$98,G$5,Data!$C$2:$C$98,$C21) -> 3490.8507 | H21: =SUM(D21:G21) -> 14105.8007 | I21: =SUMIFS(Data!$G$2:$G$194,Data!$A$2:$A$194,$I$5,Data!$C$2:$C$194,$C21) -> 13150.03921
B22: Revenue | C22: Outdoors | D22: =SUMIFS(Data!$G$2:$G$98,Data!$B$2:$B$98,D$5,Data!$C$2:$C$98,$C22) -> 3542 | E22: =SUMIFS(Data!$G$2:$G$98,Data!$B$2:$B$98,E$5,Data!$C$2:$C$98,$C22) -> 3399.46 | F22: =SUMIFS(Data!$G$2:$G$98,Data!$B$2:$B$98,F$5,Data!$C$2:$C$98,$C22) -> 3402.62 | G22: =SUMIFS(Data!$G$2:$G$98,Data!$B$2:$B$98,G$5,Data!$C$2:$C$98,$C22) -> 3482.6438 | H22: 13826.7238 | I22: =SUMIFS(Data!$G$2:$G$194,Data!$A$2:$A$194,$I$5,Data!$C$2:$C$194,$C22) -> 14053.82373
B23: Revenue | C23: * | D23: =SUMIFS(Data!$G$2:$G$98,Data!$B$2:$B$98,D$5,Data!$C$2:$C$98,$C23) -> 14451.33 | E23: =SUMIFS(Data!$G$2:$G$98,Data!$B$2:$B$98,E$5,Data!$C$2:$C$98,$C23) -> 13124.37 | F23: =SUMIFS(Data!$G$2:$G$98,Data!$B$2:$B$98,F$5,Data!$C$2:$C$98,$C23) -> 13533.33 | G23: =SUMIFS(Data!$G$2:$G$98,Data!$B$2:$B$98,G$5,Data!$C$2:$C$98,$C23) -> 13106.0106 | H23: 54215.0406 | I23: =SUMIFS(Data!$G$2:$G$194,Data!$A$2:$A$194,$I$5,Data!$C$2:$C$194,$C23) -> 51420.33317
C25: Choice Consolidated
B26: Line | C26: =IF(List!B2="All","*",List!B2) -> Toys | D26: Q1 | E26: Q2 | F26: Q3 | G26: Q4 | H26: Total | I26: PY
B27: =$C$26 -> Toys | C27: Labour | D27: =SUMIFS(D$6:D$24,$B$6:$B$24,$C27,$C$6:$C$24,$C$26) -> 1785 | E27: =SUMIFS(E$6:E$24,$B$6:$B$24,$C27,$C$6:$C$24,$C$26) -> 1875.97 | F27: 1802.57 | G27: 1915.6974 | H27: 7379.2374 | I27: 7289.573762
B28: =$C$26 -> Toys | C28: Overheads | D28: =SUMIFS(D$6:D$24,$B$6:$B$24,$C28,$C$6:$C$24,$C$26) -> 1340.98 | E28: 1097 | F28: 1267.21 | G28: 1107.1018 | H28: 4812.2918 | I28: 4745.94399
B29: Toys | C29: Revenue | D29: 7309.33 | E29: 6209.23 | F29: 6631.44 | G29: 6132.5161 | H29: 26282.5161 | I29: 24216.47023
B30: Toys | C30: Net | D30: =D29-D28-D27 -> 4183.35 | E30: =E29-E28-E27 -> 3236.26 | F30: 3561.66 | G30: 3109.7169 | H30: 14090.9869 | I30: 12180.95248

Sheet Dash
A4: Top 5 Exp by Labour Dept
A5: # | B5: Dept | C5: =Data!E1 -> Labour | D5: =Data!F1 -> Overheads | E5: Total
A6: 1 | B6: =Piv!A5 -> R&D | C6: =Piv!B5 -> 2628.58 | D6: =Piv!C5 -> 1574.8359 | E6: =SUM(C6:D6) -> 4203.4159
A7: 2 | B7: =Piv!A6 -> Finance | C7: =Piv!B6 -> 2626.1204 | D7: =Piv!C6 -> 1973.046 | E7: =SUM(C7:D7) -> 4599.1664
A8: 3 | B8: =Piv!A7 -> Admin | C8: =Piv!B7 -> 2575.4112 | D8: =Piv!C7 -> 1712.5187 | E8: 4287.9299
A9: 4 | B9: =Piv!A8 -> Corporate | C9: =Piv!B8 -> 2452.1239 | D9: =Piv!C8 -> 1872.6918 | E9: 4324.8157
A10: 5 | B10: =Piv!A9 -> Legal | C10: =Piv!B9 -> 2091.2682 | D10: =Piv!C9 -> 1898.9256 | E10: 3990.1938
A13: # | B13: Line Item | C13: CY | D13: PY | E13: Var
A14: 1 | B14: Labour | C14: =Calcs!H27 -> 7379.2374 | D14: =Calcs!I27 -> 7289.573762 | E14: =-(C14-D14)/C14 -> -0.01215080003
A15: 2 | B15: Overheads | C15: =Calcs!H28 -> 4812.2918 | D15: =Calcs!I28 -> 4745.94399 | E15: =-(C15-D15)/C15 -> -0.01378715439
A16: 3 | B16: Revenue | C16: =Calcs!H29 -> 26282.5161 | D16: =Calcs!I29 -> 24216.47023 | E16: =(C16-D16)/C16 -> 0.07860913541
A17: 4 | B17: Net | C17: =Calcs!H30 -> 14090.9869 | D17: =Calcs!I30 -> 12180.95248 | E17: =(C17-D17)/C17 -> 0.1355500812
